bitfinex-derivatives/quotes_ETHF0:USTF0_20250320
["timestamp","ask_amount","ask_price","bid_price","bid_amount"]
[1742467068002,0.00756392,1983.1,1983.0,1.00895]
[1742467068207,0.00756392,1983.1,1983.0,4.55705]
[1742467068607,3.2078,1983.5,1983.4,1.00875]
[1742467068909,3.2078,1983.5,1983.2,3.816]
[1742467069106,3.5836,1983.4,1983.3,1.00877]
[1742467069310,3.5836,1983.4,1983.3,4.55687]
[1742467069608,3.5836,1983.4,1983.3,3.5481]
[1742467069807,4.59237,1983.4,1983.0,7.0238]
[1742467070002,4.59237,1983.4,1983.0,7.5834]
[1742467070309,1.00884,1983.3,1983.0,7.5834]
[1742467070499,3.6445,1983.2,1983.0,3.816]
[1742467071013,3.2078,1983.1,1982.9,46.614]
[1742467071206,3.6445,1983.2,1982.9,46.614]
[1742467071207,3.6445,1983.0,1982.9,46.614]
[1742467072501,4.65345,1983.0,1982.9,46.614]
[1742467072705,3.6445,1983.0,1982.9,46.614]
[1742467073711,4.65345,1983.0,1982.9,46.614]
[1742467073906,3.6445,1983.0,1982.9,46.614]
[1742467075102,3.6445,1983.0,1982.9,47.623]
[1742467075711,3.6445,1983.0,1982.9,46.614]
[1742467075910,3.6445,1983.0,1982.9,47.623]
[1742467076517,3.6445,1983.0,1982.9,46.614]
[1742467077708,3.6445,1983.0,1982.9,47.623]
[1742467077920,3.6445,1983.0,1982.9,46.614]
[1742467078225,4.65345,1983.0,1982.9,46.614]
[1742467078521,3.6445,1983.0,1982.9,47.623]
[1742467079315,3.6445,1983.0,1982.9,46.614]
[1742467079721,3.6445,1983.0,1982.9,47.623]
[1742467079914,4.65345,1983.0,1982.9,46.614]
[1742467080110,3.6445,1983.0,1982.9,46.614]
[1742467080315,3.6445,1983.0,1982.9,47.623]
[1742467080809,9.1678,1983.3,1983.2,1.00885]
[1742467081017,12.7491,1983.3,1983.2,1.00885]
[1742467081317,1.00892,1983.1,1982.9,46.614]
[1742467081524,3.5813,1983.0,1982.9,46.614]
[1742467082124,4.59025,1983.0,1982.9,46.614]
[1742467083023,7.3953,1983.0,1982.7,0.00756392]
[1742467083219,1.00905,1982.8,1982.7,0.00756392]
[1742467083528,3.2078,1982.9,1982.7,0.00756392]
[1742467083725,3.5448,1982.8,1982.7,1.01666392]
[1742467084617,3.5448,1982.8,1982.7,0.00756392]
[1742467085026,3.5448,1982.8,1982.7,3.64266392]
[1742467085414,3.5448,1982.8,1982.7,4.65176392]
[1742467085618,3.5448,1982.8,1982.7,3.64266392]
[1742467086023,3.5448,1982.8,1982.7,4.65176392]
[1742467087017,3.5448,1982.8,1982.7,3.64266392]
[1742467087928,4.55385,1982.8,1982.7,0.00756392]
[1742467088322,3.5448,1982.8,1982.7,0.00756392]
[1742467088525,4.55385,1982.8,1982.7,0.00756392]
[1742467089219,3.5448,1982.8,1982.7,0.00756392]
[1742467089422,4.55385,1982.8,1982.7,0.00756392]
[1742467089928,4.55389,1982.8,1982.4,47.62925]
[1742467090119,6.9648,1982.7,1982.4,47.62925]
[1742467090319,3.8354,1982.6,1982.5,1.00921]
[1742467090519,3.2078,1982.7,1982.6,1.00915]
[1742467090720,3.8354,1982.8,1982.7,1.0091]
[1742467090923,3.2078,1982.9,1982.8,1.00905]
[1742467091231,7.0432,1983.1,1983.0,1.00895]
[1742467091427,3.2078,1983.3,1983.2,1.00885]
[1742467091623,3.8528,1983.3,1983.2,1.00885]
[1742467092138,0.00756392,1983.5,1983.1,5.73004]
[1742467092428,3.86036392,1983.5,1983.4,1.00875]
[1742467092826,3.86036392,1983.5,1983.2,8.27022]
[1742467093019,3.86036392,1983.5,1983.3,1.00879]
[1742467093230,3.86036392,1983.5,1983.4,1.00875]
[1742467093530,3.86036392,1983.5,1983.2,7.2614]
[1742467093830,3.86036392,1983.5,1983.3,1.0088]
[1742467094226,3.2078,1983.4,1983.2,7.2614]
[1742467094427,3.6135,1983.3,1983.2,8.27025]
[1742467094918,3.6135,1983.3,1983.2,7.2614]
[1742467095123,3.6135,1983.3,1983.2,4.76675]
[1742467095833,3.6135,1983.3,1983.2,3.7579]
[1742467096218,3.6135,1983.3,1983.2,4.76675]
[1742467096426,0.00756392,1983.5,1983.4,1.00875]
[1742467096626,3.62106392,1983.5,1983.4,1.00875]
[1742467098031,0.00756392,1983.5,1983.4,1.00875]
[1742467098229,0.00756392,1983.5,1983.4,11.63995]
[1742467098530,3.7512,1983.8,1983.7,1.0086]
[1742467098723,4.75976,1983.8,1983.5,4.82067]
[1742467098928,3.2078,1983.7,1983.4,3.6354]
[1742467099227,4.75989,1983.6,1983.3,5.96]
[1742467099433,4.75989,1983.6,1983.2,8.45621]
[1742467099434,3.2078,1983.5,1983.2,8.45621]
[1742467099737,3.7512,1983.4,1983.3,0.00756392]
[1742467100335,4.75995,1983.4,1983.3,0.00756392]
[1742467100536,8.49045,1983.4,1983.3,0.00756392]
[1742467100733,12.14225,1983.4,1983.3,0.00756392]
[1742467100930,13.6335,1983.4,1982.7,6.9596]
[1742467101236,4.21667,1983.2,1982.9,1.00897]
[1742467101430,3.7879,1983.1,1982.7,6.9596]
[1742467101637,4.21675,1983.0,1982.6,46.615]
[1742467101929,4.21675,1983.0,1982.6,46.62256392]
[1742467101930,3.2078,1982.8,1982.6,46.62256392]
[1742467102128,4.797,1982.7,1982.6,46.62256392]
[1742467102324,4.797,1982.7,1982.6,0.00756392]
[1742467102733,3.7879,1982.7,1982.6,0.00756392]
[1742467103034,4.797,1982.7,1982.6,0.00756392]
[1742467103235,8.608,1982.7,1982.6,0.00756392]
[1742467104030,7.5989,1982.7,1982.6,1.01671392]
[1742467104841,3.7879,1982.7,1982.6,1.01671392]
[1742467105541,3.2078,1982.9,1982.8,1.00905]
[1742467105737,3.2078,1982.9,1982.6,0.00756392]
[1742467106038,3.2078,1982.9,1982.8,1.00905]
[1742467106234,3.811,1983.0,1982.6,0.00756392]
[1742467106440,3.811,1983.0,1982.8,1.00905]
[1742467106642,3.811,1983.0,1982.6,0.00756392]
[1742467106842,3.6344,1982.9,1982.8,1.00905]
[1742467107038,6.8422,1982.9,1982.6,0.00756392]
[1742467107237,6.8422,1982.9,1982.7,1.0091]
[1742467107438,6.8422,1982.9,1982.6,0.00756392]
[1742467107649,6.8422,1982.9,1982.8,1.00905]
[1742467107836,6.8422,1982.9,1982.6,0.00756392]
[1742467107837,6.8422,1982.9,1982.7,1.00906]
[1742467108142,6.8422,1982.9,1982.8,1.00905]
[1742467108642,6.8422,1982.9,1982.7,1.00907]
[1742467108943,6.8422,1982.9,1982.6,0.00756392]
[1742467109144,1.00909,1982.8,1982.6,0.00756392]
[1742467109438,3.6344,1982.7,1982.6,0.00756392]
[1742467109837,4.6435,1982.7,1982.6,0.00756392]
[1742467110046,15.2672,1982.7,1982.6,0.00756392]
[1742467110232,14.2581,1982.7,1982.6,1.01671392]
[1742467110534,7.2393,1982.7,1982.6,1.01671392]
[1742467110735,3.6344,1982.7,1982.6,1.01671392]
[1742467111632,3.2078,1982.9,1982.8,1.00905]
[1742467112035,3.2078,1982.9,1982.7,4.7285]
[1742467112347,3.5775,1982.8,1982.7,4.7285]
[1742467113739,3.2078,1982.9,1982.8,1.00905]
[1742467114743,3.2078,1982.9,1982.7,8.53947]
[1742467115045,3.7788,1982.8,1982.6,10.56648392]
[1742467115344,3.7788,1982.8,1982.7,1.0091]
[1742467115542,3.7788,1982.8,1982.6,9.55736392]
[1742467115733,3.7788,1982.8,1982.6,10.56649392]
[1742467115938,3.7788,1982.8,1982.6,5.96756392]
[1742467116138,4.78787,1982.8,1982.6,5.96756392]
[1742467116345,3.7788,1982.8,1982.6,5.96756392]
[1742467116642,4.2169,1982.7,1982.6,5.96756392]
[1742467116941,4.2169,1982.7,1982.6,0.00756392]
[1742467117148,8.0269,1982.7,1982.6,0.00756392]
[1742467117445,8.0269,1982.7,1982.4,46.624]
[1742467117446,1.00918,1982.6,1982.4,46.624]
[1742467117646,4.84808,1982.6,1982.4,47.63325]
[1742467117945,3.8389,1982.6,1982.4,47.63324]
[1742467118142,3.8389,1982.6,1982.4,46.624]
[1742467118341,3.8389,1982.6,1982.5,1.00921]
[1742467118846,3.8389,1982.6,1982.5,4.55151]
[1742467119048,4.84808,1982.6,1982.4,46.624]
[1742467119244,3.8389,1982.6,1982.4,46.624]
[1742467119747,4.84807,1982.6,1982.4,47.63322]
[1742467120138,3.8389,1982.6,1982.5,1.00921]
[1742467121546,3.8389,1982.6,1982.5,4.55151]
[1742467122745,4.84807,1982.6,1982.4,46.624]
[1742467122939,3.8389,1982.6,1982.5,1.00921]
[1742467123450,3.8389,1982.6,1982.5,4.68961]
[1742467124139,3.585,1982.8,1982.7,1.0091]
[1742467125448,3.2078,1982.9,1982.8,1.00905]
[1742467126450,3.6663,1983.0,1982.9,1.009]
[1742467126638,3.2078,1983.5,1983.4,1.00875]
[1742467126835,3.6663,1983.4,1983.3,1.0088]
[1742467127035,0.00756392,1983.6,1983.4,1.00871]
[1742467127645,0.00756392,1983.6,1983.3,1.01635392]
[1742467127845,0.00756392,1983.6,1983.4,1.00873]
[1742467128248,3.63766392,1983.6,1983.3,1.01633392]
[1742467128451,4.64633392,1983.6,1983.3,0.00756392]
[1742467128740,1.00875,1983.4,1983.3,0.00756392]
[1742467129145,10.9569,1983.4,1983.0,1.00894]
[1742467129344,3.2078,1983.2,1982.9,1.00898]
[1742467129537,3.2078,1983.2,1982.6,49.14382]
[1742467129538,3.6301,1983.1,1982.6,50.429]
[1742467129743,3.6301,1983.1,1982.7,3.6509]
[1742467129942,3.2078,1983.0,1982.8,1.00901]
[1742467130241,3.6301,1982.9,1982.8,1.00905]
[1742467130448,4.63913,1982.9,1982.6,46.621]
[1742467130746,7.4996,1982.9,1982.6,46.621]
[1742467131046,7.4996,1982.9,1982.7,1.0091]
[1742467131442,7.4996,1982.9,1982.8,1.00905]
[1742467131644,3.6301,1982.9,1982.8,1.00905]
[1742467132143,3.2078,1983.0,1982.9,1.009]
[1742467132442,3.2078,1983.5,1982.8,6.14736]
[1742467132647,3.2078,1983.5,1983.3,1.00878]
[1742467132648,6.847,1983.5,1983.3,1.00878]
[1742467132848,6.847,1983.5,1983.4,4.78825]
[1742467133047,0.00756392,1983.6,1983.5,1.0087]
[1742467133245,6.847,1984.0,1983.8,1.00852]
[1742467133444,6.847,1984.0,1983.9,4.78799]
[1742467133746,4.2162,1984.1,1983.9,3.7795]
[1742467133949,6.9663,1984.1,1983.9,3.7795]
[1742467134242,3.7585,1984.1,1984.0,1.00844]
[1742467134442,3.7585,1984.1,1984.0,4.81544]
[1742467134645,3.7585,1984.1,1984.0,3.807]
[1742467134840,3.7585,1984.1,1984.0,1.00844]
[1742467135151,0.00756392,1984.2,1984.1,1.00839]
[1742467135345,3.2078,1984.7,1984.1,50.422]
[1742467135548,4.21592,1984.7,1984.2,3.7542]
[1742467135745,3.2078,1984.5,1984.1,50.422]
[1742467135947,3.2078,1984.5,1984.1,51.43037]
[1742467136142,4.21601,1984.5,1984.1,51.43037]
[1742467136338,3.2078,1984.5,1984.1,50.422]
[1742467136543,0.00756392,1984.5,1984.3,1.00828]
[1742467136843,0.00756392,1984.5,1984.4,4.53934]
[1742467137238,0.00756392,1984.5,1984.4,3.5311]
[1742467137443,0.00756392,1984.5,1984.4,4.53934]
[1742467138839,0.00756392,1984.5,1984.4,8.34534]
[1742467139144,3.2078,1985.2,1984.6,2.52029]
[1742467139343,3.2078,1985.2,1985.1,1.00784]
[1742467139548,6.8322,1985.4,1984.8,52.3349]
[1742467139743,6.8322,1985.4,1985.0,1.00793]
[1742467139939,6.8322,1985.4,1984.9,7.325]
[1742467140342,0.00756392,1985.3,1985.0,0.00756392]
[1742467140650,0.00756392,1985.3,1985.1,1.00786]
[1742467140851,3.70086392,1985.3,1985.2,1.00783]
[1742467142549,0.00756392,1985.3,1985.2,1.00783]
[1742467142751,3.70086392,1985.3,1985.2,4.54163]
[1742467143553,0.00756392,1985.3,1985.2,8.34563]
[1742467143950,0.00756392,1985.3,1985.2,12.03753]
[1742467144150,3.92e-06,1985.3,1985.2,14.53753]
[1742467144454,3.92e-06,1985.3,1985.2,12.03753]
[1742467144855,3.92e-06,1985.3,1985.2,8.23353]
[1742467145149,3.92e-06,1985.3,1985.2,12.03753]
[1742467145854,3.92e-06,1985.3,1985.2,8.34563]
[1742467146151,3.92e-06,1985.3,1985.2,1.00783]
[1742467146349,3.92e-06,1985.3,1985.1,1.00784]
[1742467146548,3.803,1985.2,1985.0,0.00756392]
[1742467146858,7.0503,1985.1,1984.2,2.52084]
[1742467147054,3.2078,1984.7,1984.1,2.52099]
[1742467147351,7.0503,1984.6,1984.5,1.00819]
[1742467148144,8.05845,1984.6,1984.4,3.86756392]
[1742467148355,7.0503,1984.6,1984.4,1.01578392]
[1742467148556,7.0503,1984.6,1984.5,1.00819]
[1742467149146,7.0503,1984.6,1984.4,0.00756392]
[1742467149147,3.2078,1985.0,1984.9,1.00798]
[1742467149446,3.92e-06,1985.3,1985.2,1.00783]
[1742467149959,3.92e-06,1985.3,1985.2,4.81083]
[1742467150449,3.92e-06,1985.3,1985.1,1.00785]
[1742467150644,3.2078,1985.2,1985.1,1.00785]
[1742467150849,3.2078,1985.2,1985.0,1.0079]
[1742467151147,7.5992,1985.1,1985.0,1.0079]
[1742467152350,10.8535,1985.2,1985.1,1.00788]
[1742467152351,3.2078,1985.2,1985.1,1.00788]
[1742467152847,3.2078,1985.2,1985.1,47.58588]
[1742467153355,3.92e-06,1985.3,1985.2,1.00783]
[1742467153555,3.92e-06,1985.3,1985.2,8.60763]
[1742467154055,3.92e-06,1985.3,1985.2,1.00783]
[1742467154247,3.92e-06,1985.3,1985.2,4.80983]
[1742467154854,3.92e-06,1985.3,1985.1,46.578]
[1742467155059,3.82640392,1985.3,1985.1,46.578]
[1742467155555,7.3679,1985.2,1984.9,1.00794]
[1742467155855,3.7189,1985.1,1984.9,1.00794]
[1742467156354,3.7189,1985.1,1985.0,1.00793]
[1742467158858,3.7189,1985.1,1984.8,9.48147]
[1742467158859,3.7189,1985.1,1984.9,1.00795]
[1742467159053,7.93461,1985.1,1984.6,49.7808]
[1742467159256,6.9267,1985.1,1984.9,1.00797]
[1742467159452,1.00796,1985.0,1984.7,1.00806]
[1742467159657,6.9267,1985.1,1984.6,49.7808]
[1742467159858,3.5272,1984.9,1984.8,1.00804]
[1742467160856,3.5272,1984.9,1984.6,52.30113]
[1742467160857,7.3679,1985.2,1985.0,1.00789]
[1742467161058,3.5272,1985.1,1985.0,1.00789]
[1742467161451,6.735,1985.1,1985.0,1.00789]
[1742467162263,6.735,1985.1,1984.7,10.07481]
[1742467162454,6.735,1985.1,1984.9,1.00795]
[1742467162756,6.735,1985.1,1984.8,1.00801]
[1742467162960,4.53509,1985.1,1984.8,1.00801]
[1742467163160,7.74289,1985.1,1984.8,1.00801]
[1742467163351,6.735,1985.1,1984.7,8.56267]
[1742467163556,6.735,1985.1,1984.7,3.801]
[1742467163757,1.00804,1984.8,1984.7,3.801]
[1742467163950,1.008,1984.9,1984.7,3.801]
[1742467164156,3.8112,1984.8,1984.7,1.00809]
[1742467164360,3.8112,1984.8,1984.7,4.78199]
[1742467164762,1.00809,1984.7,1984.4,0.00756392]
[1742467165055,1.00852,1983.9,1983.6,1.00861]
[1742467165262,3.8629,1983.8,1983.4,3.7739]
[1742467165561,3.8629,1983.8,1983.4,44.5739]
[1742467165756,3.8629,1983.8,1983.7,1.0086]
[1742467165951,3.8629,1983.8,1983.6,1.00861]
[1742467166156,1.0086,1983.7,1983.6,0.00756392]
[1742467166554,3.8629,1983.7,1983.6,0.00756392]
[1742467167459,3.8629,1983.7,1983.6,1.01621392]
[1742467168251,0.00756392,1983.9,1983.8,1.00854]
[1742467168458,3.92e-06,1983.9,1983.8,4.81054]
[1742467168656,3.92e-06,1983.9,1983.8,11.12294]
[1742467168858,3.92e-06,1983.9,1983.8,51.92294]
[1742467169260,3.92e-06,1983.9,1983.8,49.42294]
[1742467169666,3.92e-06,1983.9,1983.8,49.42194]
[1742467171467,3.92e-06,1983.9,1983.8,8.62194]
[1742467172473,3.92e-06,1983.9,1983.8,11.12194]
[1742467172660,3.92e-06,1983.9,1983.8,8.62194]
[1742467174266,3.66350392,1983.9,1983.8,7.6134]
[1742467174569,3.66350392,1983.9,1983.8,8.62194]
[1742467175469,3.92e-06,1983.9,1983.8,8.62194]
[1742467175664,3.92e-06,1983.9,1983.8,1.00854]
[1742467177068,3.92e-06,1983.9,1983.7,1.00858]
[1742467177468,3.64920392,1983.9,1983.7,1.00858]
[1742467177669,3.64920392,1983.9,1983.6,3.80856392]
[1742467178169,3.64920392,1983.9,1983.8,1.00854]
[1742467178476,3.64920392,1983.9,1983.7,1.00855]
[1742467179373,3.64920392,1983.9,1983.7,1.00859]
[1742467179561,3.64920392,1983.9,1983.7,1.0086]
[1742467179964,3.64920392,1983.9,1983.6,0.00756392]
[1742467180166,3.64920392,1983.9,1983.7,1.00857]
[1742467180361,4.65770392,1983.9,1983.7,1.00857]
[1742467180572,4.65770392,1983.9,1983.6,1.01618392]
[1742467180873,3.64920392,1983.9,1983.7,1.00858]
[1742467181070,3.64920392,1983.9,1983.6,0.00756392]
[1742467181272,4.65770392,1983.9,1983.6,1.01617392]
[1742467181569,4.65770392,1983.9,1983.6,1.01618392]
[1742467182077,4.65770392,1983.9,1983.7,1.00857]
[1742467182265,4.65770392,1983.9,1983.7,1.00855]
[1742467182266,3.64920392,1983.9,1983.7,1.00855]
[1742467182574,4.65770392,1983.9,1983.7,1.00858]
[1742467182769,4.65770392,1983.9,1983.6,1.01618392]
[1742467182969,4.65770392,1983.9,1983.7,1.00859]
[1742467183166,3.64920392,1983.9,1983.6,1.01617392]
[1742467183371,1.0086,1983.7,1983.6,0.00756392]
[1742467183572,7.0088,1983.8,1983.1,3.2078]
[1742467183767,7.0437,1983.6,1983.5,1.0087]
[1742467184664,7.0437,1983.6,1983.3,3.8076]
[1742467184875,7.0437,1983.6,1983.4,0.00756392]
[1742467185075,8.05237,1983.6,1983.4,1.01631392]
[1742467185472,1.0087,1983.5,1983.4,0.00756392]
[1742467185670,3.5897,1983.5,1983.4,3.77356392]
[1742467185867,4.5984,1983.5,1983.4,3.77356392]
[1742467186172,4.5984,1983.5,1983.4,0.00756392]
[1742467186369,1.00887,1983.2,1983.0,1.00893]
[1742467186670,3.5897,1983.1,1983.0,1.00895]
[1742467186862,7.5866,1983.4,1983.3,1.0088]
[1742467187062,10.7944,1983.4,1983.3,1.0088]
[1742467187267,10.7944,1983.4,1983.2,1.00882]
[1742467187471,7.5866,1983.4,1983.3,1.0088]
[1742467188072,8.59536,1983.4,1983.2,0.00755609]
[1742467188272,3.5897,1983.3,1983.2,1.01640609]
[1742467188974,3.2078,1983.4,1983.3,1.0088]
[1742467189174,3.2078,1983.4,1983.3,4.58]
[1742467189374,3.667,1983.8,1983.3,13.10293]
[1742467189571,3.92e-06,1983.9,1983.6,1.00865]
[1742467189772,3.92e-06,1983.9,1983.8,1.00854]
[1742467189978,3.92e-06,1983.9,1983.8,6.96854]
[1742467190180,3.92e-06,1983.9,1983.8,53.95054]
[1742467193781,3.92e-06,1983.9,1983.8,51.45054]
[1742467193973,3.92e-06,1983.9,1983.8,10.65054]
[1742467194175,3.92e-06,1983.9,1983.8,14.45154]
[1742467195480,3.92e-06,1983.9,1983.8,8.49154]
[1742467198686,3.92e-06,1983.9,1983.8,4.80954]
[1742467205299,3.92e-06,1983.9,1983.5,47.7769]
[1742467205489,3.92e-06,1983.9,1983.8,1.00854]
[1742467208701,3.92e-06,1983.9,1983.8,4.21634]
[1742467208893,3.92e-06,1983.9,1983.8,1.00854]
[1742467209094,3.92e-06,1983.9,1983.8,4.21634]
[1742467209294,3.92e-06,1983.9,1983.8,8.01534]
[1742467209996,3.92e-06,1983.9,1983.8,1.00854]
[1742467210397,3.92e-06,1983.9,1983.8,4.21634]
[1742467224112,3.92e-06,1983.9,1983.8,50.81034]
[1742467224309,3.2078,1984.4,1983.8,50.81034]
[1742467224310,3.2078,1985.1,1983.8,58.2618]
[1742467224508,7.5449,1985.0,1984.9,1.00799]
[1742467225412,7.5449,1985.0,1984.8,1.01558001]
[1742467225711,7.5449,1985.0,1984.8,0.00756001]
[1742467225912,8.55285,1985.0,1984.8,0.00756001]
[1742467226104,3.2078,1984.9,1984.6,46.594]
[1742467226418,4.80504,1984.8,1984.5,4.21596]
[1742467226706,3.2078,1984.7,1984.1,49.8018]
[1742467226910,1.00821,1984.5,1984.2,1.00834]
[1742467227104,4.80521,1984.5,1984.1,46.594]
[1742467227306,3.7863,1984.4,1984.1,47.60237]
[1742467227505,3.7863,1984.4,1984.2,1.00834]
[1742467227705,3.8603,1984.3,1984.2,1.00834]
[1742467227902,13.0281,1984.3,1983.7,3.2078]
[1742467228110,13.0281,1984.3,1983.6,47.59962]
[1742467228111,1.00853,1983.9,1983.6,47.59962]
[1742467228415,7.3299,1983.8,1983.6,47.59963]
[1742467228709,7.3299,1983.8,1983.6,1.00861]
[1742467228910,13.2899,1983.8,1983.3,3.2078]
[1742467229112,3.2078,1983.6,1983.1,3.2078]
[1742467229410,11.1189,1983.5,1983.4,1.00875]
[1742467229612,11.1189,1983.5,1983.1,3.2078]
[1742467229811,7.3219,1983.5,1983.4,1.00875]
[1742467230213,8.33063,1983.5,1983.1,3.2078]
[1742467230512,1.00889,1983.2,1982.9,4.21677]
[1742467230711,7.3491,1983.1,1983.0,1.00895]
[1742467230913,8.35801,1983.1,1982.9,1.00897]
[1742467231116,3.697,1983.0,1982.9,1.00897]
[1742467231316,7.3318,1983.0,1982.9,1.00897]
[1742467231810,8.34078,1983.0,1982.7,50.80787]
[1742467232111,7.3318,1983.0,1982.9,1.009]
[1742467234115,7.3318,1983.0,1982.8,3.8606]
[1742467234316,7.3318,1983.0,1982.7,49.7988]
[1742467234823,8.34079,1983.0,1982.7,49.7988]
[1742467235022,7.3318,1983.0,1982.7,49.7988]
[1742467235223,7.3318,1983.0,1982.8,1.00905]
[1742467235422,8.34077,1983.0,1982.7,49.7988]
[1742467235623,8.34077,1983.0,1982.7,50.80789]
[1742467236216,8.34079,1983.0,1982.7,49.7988]
[1742467236416,1.00904,1982.9,1982.7,49.7988]
[1742467236613,3.8308,1982.8,1982.7,49.7988]
[1742467237110,3.8308,1982.8,1982.7,50.8079]
[1742467237317,3.8308,1982.8,1982.7,54.56]
[1742467237517,3.8308,1982.8,1982.7,53.5509]
[1742467237716,3.8308,1982.8,1982.7,49.7988]
[1742467238322,4.83985,1982.8,1982.7,49.7988]
[1742467238521,3.8308,1982.8,1982.7,49.7988]
[1742467238717,3.8308,1982.8,1982.7,50.8079]
[1742467239020,4.83987,1982.8,1982.4,3.7521]
[1742467239217,3.8308,1982.8,1982.6,1.00914]
[1742467239425,4.84743392,1982.8,1982.4,4.76134]
[1742467239622,4.21693,1982.7,1982.4,3.7521]
[1742467239924,4.21693,1982.7,1982.3,47.8058]
[1742467239925,3.627,1982.6,1982.3,3.2078]
[1742467240124,1.00922,1982.5,1982.3,3.2078]
[1742467240423,3.5845,1982.4,1982.3,4.21711]
[1742467240612,3.5845,1982.4,1982.3,7.89131]
[1742467241608,3.5845,1982.4,1982.3,3.6742]
[1742467242224,3.5845,1982.4,1982.3,4.68351]
[1742467243226,3.80556392,1982.8,1982.7,1.0091]
[1742467243427,0.00756392,1982.8,1982.7,1.0091]
[1742467244230,0.00756392,1982.8,1982.5,3.5736]
[1742467244626,0.00756392,1982.8,1982.6,1.00913]
[1742467244832,3.88516392,1982.8,1982.6,1.00913]
[1742467245217,3.88516392,1982.8,1982.5,3.5736]
[1742467245528,3.88516392,1982.8,1982.6,1.00914]
[1742467246226,3.798,1982.7,1982.5,1.0092]
[1742467246428,3.7433,1982.6,1982.5,1.0092]
[1742467247626,3.7433,1982.6,1982.5,4.6655]
[1742467250229,3.7433,1982.6,1982.5,4.66551]
[1742467250536,3.7433,1982.6,1982.5,1.00921]
[1742467251240,3.7433,1982.6,1982.4,1.00922]
[1742467251432,3.7433,1982.6,1982.5,1.00921]
[1742467254838,3.7433,1982.6,1982.4,1.00922]
[1742467255034,3.7433,1982.6,1982.2,9.45927]
[1742467255035,1.00931,1982.3,1982.2,6.9359]
[1742467255337,4.21708,1982.4,1982.2,3.7281]
[1742467255534,3.8892,1982.3,1982.2,7.4799]
[1742467256133,3.8892,1982.3,1982.2,8.48926]
[1742467257443,3.8892,1982.3,1982.2,7.4799]
[1742467257742,4.89851,1982.3,1982.2,7.4799]
[1742467258544,3.8892,1982.3,1982.2,7.4799]
[1742467258737,3.8892,1982.3,1982.1,46.615]
[1742467258944,4.89851,1982.3,1982.1,46.615]
[1742467259244,8.69454,1982.3,1982.1,46.615]
[1742467259448,8.69454,1982.3,1982.1,47.62439]
[1742467259640,3.8892,1982.3,1982.2,1.00936]
[1742467260042,1.01663392,1982.8,1982.6,1.00915]
[1742467260347,0.00756392,1982.8,1982.7,1.0091]
[1742467261742,0.00756392,1982.8,1982.7,4.6697]
[1742467264152,0.00756392,1982.8,1982.7,1.0091]
[1742467264553,3.61276392,1982.8,1982.7,1.0091]
[1742467265638,3.92e-06,1982.8,1982.7,8.0129]
[1742467265849,3.92e-06,1982.8,1982.7,10.5129]
[1742467266151,3.2078,1983.9,1983.8,1.00854]
[1742467266447,14.475,1984.1,1983.4,3.795]
[1742467266639,3.2078,1983.7,1983.3,46.627]
[1742467266839,4.2165,1983.5,1983.3,46.627]
[1742467267052,3.6052,1983.4,1983.3,46.627]
[1742467267951,4.61395,1983.4,1983.3,46.627]
[1742467268154,4.61395,1983.4,1983.2,0.00756392]
[1742467268343,3.6052,1983.4,1983.2,0.00756392]
[1742467268743,4.61396,1983.4,1983.2,0.00756392]
[1742467268941,3.6052,1983.4,1983.2,0.00756392]
[1742467269144,3.6052,1983.4,1983.3,1.0088]
[1742467270154,3.6052,1983.4,1983.3,4.6559]
[1742467270553,3.55986392,1983.6,1983.5,1.0087]
[1742467270855,3.55986392,1983.6,1983.5,51.4267]
[1742467270856,3.92e-06,1983.6,1983.5,51.4267]
[1742467271049,3.6888,1984.2,1984.1,1.00839]
[1742467271543,3.6888,1984.2,1984.1,4.21619]
[1742467271752,3.2078,1984.9,1984.2,2.52086]
[1742467271955,3.2078,1984.9,1984.3,6.8992]
[1742467271956,3.6888,1984.8,1984.3,6.8992]
[1742467272151,0.00756392,1984.7,1984.4,3.69896392]
[1742467272359,1.00815,1984.6,1984.4,0.00756392]
[1742467272559,3.6888,1984.5,1984.4,0.00756392]
[1742467273358,3.6888,1984.5,1984.4,1.01580392]
[1742467273552,0.00756392,1984.7,1984.6,1.00814]
[1742467273755,3.64876392,1984.7,1984.6,1.00814]
[1742467274055,3.64876392,1984.7,1984.5,40.8]
[1742467274354,3.64876392,1984.7,1984.6,1.00814]
[1742467274857,3.64876392,1984.7,1984.4,0.00756392]
[1742467275255,6.85656392,1984.7,1984.4,1.01578392]
[1742467275855,6.85656392,1984.7,1984.6,1.00814]
[1742467276055,3.64876392,1984.7,1984.6,1.00814]
[1742467276559,3.64876392,1984.7,1984.5,1.00817]
[1742467276854,3.64876392,1984.7,1983.6,3.2078]
[1742467276855,9.1678,1984.6,1983.6,3.2078]
[1742467277051,3.2078,1984.2,1983.8,1.0085]
[1742467277254,3.6669,1984.1,1983.6,10.7327]
[1742467277453,3.6669,1984.1,1983.7,3.7329]
[1742467278059,9.1678,1984.6,1984.3,1.00829]
[1742467278263,9.1678,1984.6,1984.0,3.2078]
[1742467278264,3.6669,1984.3,1984.2,4.2161]
[1742467278562,3.6669,1984.3,1984.1,7.5249]
[1742467278758,3.6669,1984.3,1984.1,8.53327]
[1742467278958,3.6669,1984.3,1984.1,49.33327]
[1742467279155,3.6669,1984.3,1984.1,7.5249]
[1742467279554,3.6669,1984.3,1984.1,3.792]
[1742467279756,3.6669,1984.3,1984.0,46.603]
[1742467279757,7.2362,1984.3,1984.0,46.603]
[1742467279962,11.1063,1984.3,1984.0,46.603]
[1742467280158,12.11459,1984.3,1984.0,46.603]
[1742467280458,1.00839,1984.1,1984.0,46.603]
[1742467280663,6.9988,1984.2,1984.0,46.603]